bitfinex/quotes_SOLUSD_20250222
["timestamp","ask_amount","ask_price","bid_price","bid_amount"]
[1740246661961,0.063,173.45,173.44,17.26836507]
[1740246666541,0.063,173.48,173.44,31.68256507]
[1740246666866,0.063,173.48,173.47,17.91886507]
[1740246667546,0.105382,173.52,173.5,20.0]
[1740246667745,0.105382,173.52,173.51,11.50276507]
[1740246667934,0.105382,173.52,173.51,17.26606507]
[1740246668338,0.105382,173.52,173.5,11.50276507]
[1740246668649,0.105382,173.52,173.51,11.50276507]
[1740246669260,0.03,173.53,173.52,1.0]
[1740246669539,0.03,173.56,173.53,1.5614]
[1740246669734,0.03,173.56,173.55,11.50276507]
[1740246670269,0.03,173.56,173.55,17.26476507]
[1740246670769,0.03,173.56,173.55,23.71061957]
[1740246671146,0.03,173.56,173.54,17.94861957]
[1740246671351,0.03,173.56,173.53,19.51001957]
[1740246671677,17.94861957,173.54,173.48,1.6349]
[1740246671976,98.94861957,173.54,173.49,17.94861957]
[1740246672484,17.94861957,173.53,173.47,17.94861957]
[1740246672662,98.94861957,173.52,173.47,17.94861957]
[1740246672847,17.94861957,173.51,173.46,17.94861957]
[1740246673047,98.94861957,173.52,173.47,17.94861957]
[1740246673677,81.0,173.52,173.48,17.94861957]
[1740246673979,81.0,173.52,173.49,17.94861957]
[1740246674271,81.0,173.52,173.51,17.94861957]
[1740246674473,81.0,173.52,173.5,17.94861957]
[1740246674973,81.0,173.52,173.48,17.94861957]
[1740246675474,81.0,173.52,173.47,17.94861957]
[1740246676075,86.763,173.52,173.47,17.94861957]
[1740246676255,104.71161957,173.52,173.47,17.94861957]
[1740246677451,104.77461957,173.52,173.47,17.94861957]
[1740246677773,81.0,173.51,173.47,17.94861957]
[1740246678458,81.0,173.51,173.48,17.94861957]
[1740246679768,81.0,173.51,173.49,17.94861957]
[1740246680858,81.0,173.51,173.48,17.94861957]
[1740246682063,81.0,173.51,173.46,17.94861957]
[1740246682360,81.0,173.5,173.46,17.94861957]
[1740246683781,17.94861957,173.49,173.41,81.9001]
[1740246683964,98.94861957,173.48,173.42,17.94861957]
[1740246684364,81.0,173.47,173.42,17.94861957]
[1740246684759,81.0,173.47,173.43,17.94861957]
[1740246685171,81.0,173.47,173.46,17.94861957]
[1740246685688,81.0,173.51,173.46,17.94861957]
[1740246685983,0.063,173.52,173.5,17.94861957]
[1740246686187,0.063,173.52,173.51,17.94861957]
[1740246687358,0.063,173.52,173.51,23.71191957]
[1740246687562,0.063,173.52,173.51,41.66053914]
[1740246688794,0.03,173.56,173.51,41.66053914]
[1740246689097,0.03,173.56,173.55,17.94861957]
[1740246689280,0.03,173.56,173.55,23.71061957]
[1740246689987,0.03,173.56,173.53,17.94861957]
[1740246690191,0.03,173.56,173.55,17.94861957]
[1740246690690,0.03,173.56,173.53,17.94861957]
[1740246691080,0.03,173.56,173.54,17.94861957]
[1740246691285,0.03,173.56,173.49,86.22]
[1740246691286,0.03,173.56,173.55,17.94861957]
[1740246691593,0.03,173.56,173.55,23.71061957]
[1740246691774,0.03,173.56,173.55,17.94861957]
[1740246696493,0.03,173.56,173.52,17.94861957]
[1740246696792,0.03,173.56,173.53,17.94861957]
[1740246697680,81.0,173.55,173.52,17.94861957]
[1740246698081,81.0,173.55,173.48,5.7943]
[1740246698288,81.0,173.54,173.5,17.94861957]
[1740246698898,81.0,173.53,173.5,17.94861957]
[1740246699088,81.0,173.53,173.48,17.97861957]
[1740246699601,86.7627,173.53,173.48,17.97861957]
[1740246699802,81.0,173.52,173.48,17.97861957]
[1740246701183,81.0,173.51,173.48,0.03]
[1740246701691,81.0,173.51,173.49,17.94861957]
[1740246701996,81.0,173.51,173.48,17.97861957]
[1740246702490,81.0,173.51,173.49,17.94861957]
[1740246702796,81.0,173.51,173.48,17.97861957]
[1740246704890,86.7634,173.51,173.48,0.03]
[1740246705204,81.0,173.51,173.48,0.03]
[1740246705508,86.7634,173.51,173.48,0.03]
[1740246706195,81.0,173.5,173.48,0.03]
[1740246706404,5.7634,173.51,173.48,0.03]
[1740246706405,147.04861957,173.49,173.48,0.03]
[1740246706907,129.1,173.49,173.48,0.03]
[1740246707699,129.1,173.49,173.48,17.97861957]
[1740246708084,81.0,173.52,173.48,17.97861957]
[1740246708288,81.0,173.52,173.51,17.94861957]
[1740246710583,81.0,173.52,173.5,17.94861957]
[1740246710804,81.0,173.52,173.49,17.94861957]
[1740246711207,86.7632,173.52,173.48,0.03]
[1740246711417,104.71181957,173.52,173.48,0.03]
[1740246711900,86.7632,173.52,173.48,0.03]
[1740246712541,86.7632,173.52,173.48,17.97861957]
[1740246712895,86.7632,173.52,173.48,0.03]
[1740246713195,81.0,173.51,173.48,0.03]
[1740246713397,17.94861957,173.5,173.48,0.03]
[1740246713909,98.94861957,173.51,173.48,0.03]
[1740246715218,5.7636,173.5,173.48,0.03]
[1740246716294,81.0,173.49,173.48,0.03]
[1740246720218,81.0,173.49,173.48,17.97861957]
[1740246720718,81.0,173.49,173.48,0.03]
[1740246722125,86.764,173.49,173.48,0.03]
[1740246722299,5.764,173.49,173.48,0.03]
[1740246722711,48.1,173.5,173.48,0.03]
[1740246722907,53.8637,173.5,173.48,0.03]
[1740246725114,48.1,173.5,173.48,0.03]
[1740246725323,48.1,173.5,173.49,17.94861957]
[1740246726613,48.1,173.5,173.49,11.49904935]
[1740246727606,48.1,173.5,173.48,0.03]
[1740246727607,81.0,173.49,173.48,0.03]
[1740246727807,111.14869821,173.49,173.48,0.03]
[1740246728233,115.46869821,173.49,173.48,0.03]
[1740246728430,34.46869821,173.49,173.48,0.03]
[1740246729045,40.23269821,173.49,173.48,0.03]
[1740246730706,46.71685782,173.49,173.48,0.03]
[1740246732837,4.32,173.49,173.48,0.03]
[1740246733012,20.0,173.49,173.48,0.03]
[1740246733412,48.1,173.5,173.48,0.03]
[1740246733629,0.03,173.52,173.48,18.01320896]
[1740246733935,0.03,173.52,173.5,17.98320896]
[1740246734235,0.03,173.52,173.49,17.98320896]
[1740246734745,0.03,173.52,173.48,18.01320896]
[1740246735238,18.01320896,173.52,173.48,0.03]
[1740246736726,5.7633,173.51,173.48,0.03]
[1740246737339,81.0,173.5,173.48,0.03]
[1740246738527,86.7637,173.5,173.48,0.03]
[1740246739024,86.87772892,173.5,173.48,0.03]
[1740246740923,117.63285782,173.49,173.48,0.03]
[1740246741331,36.63285782,173.49,173.48,0.03]
[1740246742737,42.39685782,173.49,173.48,0.03]
[1740246744426,42.39685782,173.49,173.41,0.0001]
[1740246744746,23.74880896,173.44,173.41,0.0001]
[1740246746540,17.98320896,173.44,173.41,0.0001]
[1740246746724,23.74860896,173.45,173.41,0.0001]
[1740246748435,20.0,173.46,173.41,0.0001]
[1740246748436,23.74900896,173.44,173.41,0.0001]
[1740246749051,81.0,173.43,173.41,0.0001]
[1740246750530,86.766,173.43,173.41,0.0001]
[1740246750745,81.0,173.43,173.41,0.0001]
[1740246752634,81.0,173.43,173.41,17.98330896]
[1740246752962,81.0,173.43,173.42,17.98320896]
[1740246754330,81.11402892,173.43,173.42,17.98320896]
[1740246754740,81.11402892,173.43,173.42,11.50633007]
[1740246754954,0.11402892,173.43,173.42,11.50633007]
[1740246756550,0.11402892,173.43,173.41,11.50643007]
[1740246756750,0.11402892,173.43,173.41,17.98431923]
[1740246760244,5.88002892,173.43,173.41,0.0001]
[1740246760673,0.11402892,173.43,173.41,0.0001]
[1740246760845,81.11402892,173.43,173.41,0.0001]
[1740246764281,81.11402892,173.43,173.41,17.98431923]
[1740246766164,81.11402892,173.43,173.41,0.0001]
[1740246767851,86.88002892,173.43,173.41,0.0001]
[1740246768046,81.11402892,173.43,173.41,0.0001]
[1740246769746,81.11402892,173.43,173.41,17.98431923]
[1740246769945,0.11402892,173.43,173.42,17.98421923]
[1740246772467,0.11402892,173.43,173.42,23.75051923]
[1740246778579,0.11402892,173.43,173.42,17.27184327]
[1740246780177,0.11402892,173.43,173.42,11.50554327]
[1740246780674,0.11402892,173.43,173.41,11.50564327]
[1740246780856,0.11402892,173.43,173.41,0.0001]
[1740246783379,0.11402892,173.43,173.41,11.50564327]
[1740246785554,11.50554327,173.42,173.41,0.0001]
[1740246786973,17.27184327,173.42,173.41,0.0001]
[1740246790361,84.02149213,173.42,173.41,0.0001]
[1740246790978,65.37184327,173.42,173.41,0.0001]
[1740246792601,84.02149213,173.42,173.41,0.0001]
[1740246793788,72.51594886,173.42,173.41,0.0001]
[1740246793982,84.02149213,173.42,173.41,0.0001]
[1740246795288,59.60554327,173.42,173.41,0.0001]
[1740246795491,48.1,173.42,173.41,0.0001]
[1740246797091,0.11402892,173.43,173.41,0.0001]
[1740246797577,81.11402892,173.43,173.41,11.50564327]
[1740246797785,81.11402892,173.43,173.41,0.0001]
[1740246800371,86.88012892,173.43,173.41,0.0001]
[1740246801369,11.50554327,173.42,173.41,0.0001]
[1740246803294,0.11402892,173.43,173.41,0.0001]
[1740246806531,0.11402892,173.43,173.41,11.50564327]
[1740246806738,0.11402892,173.43,173.42,11.50554327]
[1740246808803,0.11402892,173.43,173.41,0.0001]
[1740246813630,86.7653,173.45,173.41,0.0001]
[1740246814338,81.0,173.44,173.41,11.50564327]
[1740246814815,81.0,173.44,173.42,11.50554327]
[1740246820338,81.0,173.46,173.42,11.50554327]
[1740246821342,81.0,173.46,173.42,17.27184327]
[1740246821538,81.0,173.46,173.42,11.50554327]
[1740246821744,81.0,173.46,173.43,11.50554327]
[1740246825045,81.0,173.46,173.42,11.50554327]
[1740246828015,86.765,173.46,173.42,11.50554327]
[1740246830028,86.765,173.46,173.42,11.56854327]
[1740246831032,86.765,173.46,173.42,0.063]
[1740246831446,81.0,173.46,173.44,11.50554327]
[1740246832225,0.03,173.48,173.45,11.50554327]
[1740246832435,0.03,173.48,173.46,11.50554327]
[1740246833436,0.03,173.48,173.46,17.27054327]
[1740246833633,0.03,173.48,173.47,11.50554327]
[1740246835456,0.03,173.48,173.47,17.27014327]
[1740246836862,0.03,173.48,173.47,100.17014327]
[1740246837038,0.03,173.48,173.47,101.03445562]
[1740246838557,0.03,173.52,173.49,1.0]
[1740246838760,0.03,173.52,173.51,11.50554327]
[1740246839770,0.03,173.52,173.51,17.26884327]
[1740246841959,0.03,173.52,173.51,11.50554327]
[1740246843650,0.03,173.52,173.51,5.7633]
[1740246843969,0.03,173.52,173.51,17.26884327]
[1740246844373,0.03,173.52,173.51,11.50554327]
[1740246846254,0.03,173.52,173.5,11.50554327]
[1740246846451,0.03,173.52,173.49,93.40554327]
[1740246846855,0.03,173.52,173.5,11.50554327]
[1740246847354,0.03,173.52,173.49,81.9]
[1740246849363,0.03,173.52,173.48,11.50554327]
[1740246851170,0.03,173.52,173.51,11.50554327]
[1740246851857,0.03,173.52,173.51,17.26884327]
[1740246855248,0.03,173.52,173.51,64.15517339]
[1740246855561,0.03,173.56,173.52,1.0]
[1740246855764,0.03,173.56,173.55,11.50554327]
[1740246855963,0.03,173.56,173.55,17.26754327]
[1740246858357,0.03,173.56,173.55,101.03149423]
[1740246860399,0.03,173.59,173.57,1.0]
[1740246860560,0.03,173.59,173.58,11.50554327]
[1740246861263,0.03,173.59,173.58,12.50554327]
[1740246862687,0.03,173.59,173.58,18.26654327]
[1740246862886,0.03,173.59,173.58,17.26654327]
[1740246863583,0.03,173.59,173.58,11.50554327]
[1740246863774,0.03,173.59,173.57,93.40554327]
[1740246864590,0.03,173.59,173.58,11.50554327]
[1740246866291,0.03,173.59,173.58,17.26654327]
[1740246868811,0.03,173.59,173.58,18.13032999]
[1740246869895,0.03,173.59,173.58,19.13032999]
[1740246870881,0.03,173.59,173.58,101.03032999]
[1740246871580,0.03,173.59,173.58,119.67997885]
[1740246871900,0.03,173.59,173.58,118.81619213]
[1740246877909,0.0001,173.6,173.59,20.64964886]
[1740246878092,0.0001,173.6,173.59,83.34098525]
[1740246879689,0.0001,173.6,173.59,89.10168525]
[1740246879885,0.063,173.63,173.62,20.0]
[1740246880085,0.063,173.66,173.63,1.0]
[1740246880286,0.063,173.66,173.65,11.50554327]
[1740246881808,0.063,173.66,173.65,17.26424327]
[1740246894017,0.063,173.66,173.65,11.50554327]
[1740246894397,0.063,173.66,173.65,17.26424327]
[1740246896222,0.063,173.66,173.65,5.7587]
[1740246896423,0.063,173.66,173.65,17.26424327]
[1740246899322,0.063,173.66,173.65,18.12775695]
[1740246899905,0.063,173.66,173.65,105.32775695]
[1740246904705,0.063,173.66,173.65,104.32775695]
[1740246904904,0.063,173.66,173.65,100.02775695]
[1740246905114,0.063,173.66,173.65,99.16424327]
[1740246907216,0.063,173.66,173.65,100.02772406]
[1740246907826,0.063,173.66,173.65,101.02772406]
[1740246908830,0.063,173.66,173.65,100.02772406]
[1740246910828,0.063,173.66,173.65,99.16424327]
[1740246912434,0.063,173.66,173.65,17.26424327]
[1740246912933,0.063,173.66,173.65,5.7587]
[1740246913127,0.063,173.66,173.65,17.26424327]
[1740246915433,0.063,173.66,173.65,11.50554327]
[1740246915628,0.063,173.66,173.64,5.7589]
[1740246915835,0.063,173.66,173.63,93.46854327]
[1740246916134,0.063,173.66,173.63,99.22784327]
[1740246917017,0.063,173.66,173.64,11.50554327]
[1740246917409,0.063,173.66,173.65,11.50554327]
[1740246919619,0.063,173.66,173.65,17.26424327]
[1740246924335,0.063,173.66,173.64,11.50554327]
[1740246924543,0.063,173.66,173.65,11.50554327]
[1740246924725,0.063,173.66,173.64,17.26444327]
[1740246925125,0.063,173.66,173.64,5.7589]
[1740246925825,0.063,173.66,173.63,99.22784327]
[1740246927030,0.063,173.66,173.64,11.50554327]
[1740246928036,0.063,173.66,173.64,17.26444327]
[1740246928542,18.07434327,173.65,173.63,0.063]
[1740246928847,19.67934327,173.65,173.63,0.063]
[1740246930222,11.50554327,173.64,173.63,0.063]
[1740246931330,19.67934327,173.65,173.63,0.063]
[1740246931546,8.1738,173.65,173.63,0.063]
[1740246938356,8.2038,173.65,173.63,0.063]
[1740246939231,19.70934327,173.65,173.63,0.063]
[1740246939455,11.50554327,173.64,173.63,0.063]
[1740246942234,8.2038,173.65,173.63,0.063]
[1740246952866,19.70934327,173.65,173.63,0.063]
[1740246953157,11.50554327,173.64,173.63,0.063]
[1740246955052,8.2038,173.65,173.63,0.063]
[1740246955266,0.03,173.65,173.63,0.063]
[1740246963268,11.50554327,173.64,173.63,0.063]
[1740246963961,92.50554327,173.64,173.63,0.063]
[1740246964154,98.26454327,173.64,173.63,0.4533187]
[1740246966456,125.11029213,173.64,173.63,0.4533187]
[1740246967958,81.0,173.64,173.63,0.4533187]
[1740246968968,0.03,173.65,173.63,6.2126187]
[1740246969156,0.03,173.65,173.63,0.4533187]
[1740246970557,0.03,173.65,173.63,6.2126187]
[1740246970874,0.03,173.65,173.63,0.4533187]
[1740246972780,0.03,173.65,173.63,17.71806197]
[1740246973880,0.03,173.65,173.64,11.50554327]
[1740246974777,0.03,173.65,173.64,17.26454327]
[1740246976386,0.03,173.65,173.63,0.4533187]
[1740246978583,0.03,173.65,173.63,6.2126187]
[1740246979102,0.03,173.65,173.63,0.4533187]
[1740246990202,0.03,173.65,173.64,11.50554327]
[1740246992694,0.03,173.65,173.64,17.26454327]
[1740246994104,0.03,173.65,173.63,17.71816197]
[1740246995106,0.03,173.65,173.63,0.4533187]
[1740247003726,11.53554327,173.65,173.63,0.4533187]
[1740247004015,17.26454327,173.64,173.63,0.4533187]
[1740247004513,35.91419213,173.64,173.63,0.4533187]
[1740247006604,24.40864886,173.64,173.63,0.4533187]
[1740247006807,35.91419213,173.64,173.63,0.4533187]
[1740247007514,18.64964886,173.63,173.62,0.38970813]
[1740247007706,20.0,173.6,173.56,0.063]
[1740247007905,11.50554327,173.58,173.56,0.063]
[1740247008398,11.50554327,173.57,173.56,0.063]
[1740247009225,17.26684327,173.57,173.56,0.063]
[1740247009400,11.50554327,173.57,173.56,0.063]
[1740247010725,5.761,173.58,173.56,0.063]
[1740247010726,11.50554327,173.58,173.56,0.063]
[1740247011232,11.50554327,173.57,173.56,0.063]
[1740247011596,11.50554327,173.58,173.56,0.063]
[1740247015320,81.0,173.59,173.56,0.063]
[1740247018621,92.50554327,173.59,173.56,0.063]
[1740247019328,11.50554327,173.59,173.56,0.063]
[1740247019805,11.50554327,173.57,173.56,0.063]
[1740247023314,35.91649213,173.57,173.56,0.063]
[1740247028131,90.08239213,173.57,173.56,0.063]
[1740247028332,91.68589213,173.57,173.56,0.063]
[1740247030021,1.0,173.56,173.51,0.063]
[1740247030228,30.15519213,173.52,173.51,0.063]
[1740247032505,35.91819213,173.52,173.51,0.063]
[1740247033333,30.15519213,173.52,173.51,0.063]
[1740247040438,35.91819213,173.52,173.51,0.063]
[1740247040933,86.24036521,173.52,173.51,0.063]
[1740247042305,94.88566521,173.52,173.48,0.063]
[1740247042512,31.50554327,173.49,173.48,0.063]
[1740247042934,50.15519213,173.49,173.48,0.063]
[1740247044032,55.91919213,173.49,173.48,0.063]
[1740247044227,56.91919213,173.49,173.48,0.063]
[1740247045637,55.91919213,173.49,173.48,0.063]
[1740247045816,50.15519213,173.49,173.48,0.063]
[1740247046455,38.64964886,173.49,173.48,0.063]
[1740247046638,50.15519213,173.49,173.48,0.063]
[1740247049753,55.91919213,173.49,173.48,0.063]
[1740247051143,50.15519213,173.49,173.48,0.063]
[1740247055546,55.91919213,173.49,173.48,0.063]
[1740247056550,44.41364886,173.49,173.48,0.063]
[1740247056751,55.91919213,173.49,173.48,0.063]
[1740247068664,50.15519213,173.49,173.48,0.063]
[1740247070368,55.91919213,173.49,173.48,0.063]
[1740247097461,20.0,173.46,173.45,0.063]
[1740247097773,31.50554327,173.46,173.45,0.063]
[1740247098375,50.15519213,173.46,173.45,0.063]
[1740247099492,55.92019213,173.46,173.45,0.063]
[1740247101793,56.92019213,173.46,173.45,0.0001]
[1740247101965,38.64964886,173.43,173.42,0.063]
[1740247102168,54.45519213,173.43,173.42,0.063]
[1740247103612,106.24336521,173.43,173.42,0.063]
[1740247103912,60.22119213,173.43,173.42,0.063]
[1740247104211,54.45519213,173.43,173.42,0.063]
[1740247104371,38.64964886,173.43,173.42,0.063]
[1740247105979,15.80554327,173.45,173.42,0.063]
[1740247106191,4.3,173.45,173.42,0.063]
[1740247106778,48.1,173.46,173.42,0.063]
[1740247107188,48.1,173.46,173.42,11.56854327]
[1740247107503,48.1,173.46,173.43,11.50554327]
[1740247108901,48.1,173.46,173.42,5.8291]
[1740247109106,59.60554327,173.46,173.42,0.063]
[1740247109293,11.50554327,173.45,173.42,0.063]
[1740247109485,11.50554327,173.44,173.42,0.063]
[1740247111606,81.0,173.43,173.42,0.063]
[1740247111774,30.15519213,173.43,173.42,0.063]
[1740247113397,35.92119213,173.43,173.42,0.063]
[1740247118695,18.64964886,173.43,173.42,0.063]
[1740247118891,11.56854327,173.45,173.42,0.063]
[1740247119387,18.64964886,173.44,173.42,0.063]
[1740247123408,81.0,173.43,173.42,0.063]
[1740247127692,84.02119213,173.43,173.42,0.063]
[1740247131407,130.04336521,173.43,173.42,0.063]
[1740247133412,84.02119213,173.43,173.42,0.063]
[1740247134005,131.04336521,173.43,173.42,0.063]
[1740247135018,131.04336521,173.43,173.42,0.0001]
[1740247137407,132.04336521,173.43,173.42,0.0001]
[1740247138219,83.94336521,173.43,173.42,0.0001]
[1740247144321,20.0,173.39,173.37,0.05459993]
[1740247144631,34.45519213,173.38,173.37,0.05459993]
[1740247146521,40.22279213,173.38,173.37,0.05459993]
[1740247148225,34.45519213,173.38,173.37,0.05459993]
[1740247148422,31.50554327,173.4,173.37,0.05459993]
[1740247148620,37.27254327,173.4,173.37,0.05459993]
[1740247149022,81.0,173.4,173.37,0.05459993]
[1740247151926,98.27254327,173.4,173.37,0.05459993]
[1740247153831,86.767,173.4,173.37,0.05459993]
[1740247154929,0.063,173.43,173.39,11.50554327]
[1740247155137,0.063,173.43,173.42,13.12104327]
[1740247156330,0.063,173.43,173.42,18.88734327]
[1740247156832,0.063,173.45,173.44,11.50554327]
[1740247158537,0.063,173.45,173.44,17.27114327]
[1740247162440,0.063,173.45,173.44,5.7656]
[1740247163335,0.063,173.45,173.44,17.27114327]
[1740247172347,0.0001,173.45,173.44,17.27114327]
[1740247175426,0.063,173.49,173.44,32.68534327]
[1740247175622,0.063,173.49,173.48,11.50554327]
[1740247176441,0.063,173.49,173.48,17.26984327]
[1740247177146,0.03,173.51,173.48,17.26984327]
[1740247177335,0.03,173.51,173.5,11.50554327]
[1740247179051,0.03,173.51,173.5,17.26914327]
[1740247182061,0.03,173.51,173.5,5.7636]
[1740247182359,0.03,173.51,173.5,11.50554327]
[1740247182564,0.03,173.51,173.49,11.50554327]
[1740247183846,0.03,173.51,173.49,17.26944327]
[1740247184238,0.03,173.51,173.5,11.50554327]
[1740247188744,0.03,173.51,173.5,17.26914327]
[1740247198676,0.03,173.51,173.49,11.50554327]
[1740247200580,0.03,173.51,173.47,11.50554327]
[1740247200757,0.03,173.51,173.49,0.063]
[1740247201155,0.03,173.51,173.49,11.56854327]
[1740247201357,92.53554327,173.51,173.49,0.063]
[1740247201762,81.03,173.51,173.49,0.063]
[1740247203263,81.03,173.51,173.49,11.56854327]
[1740247203465,0.03,173.51,173.5,11.50554327]
[1740247203870,0.03,173.51,173.49,0.063]
[1740247204051,0.03,173.51,173.49,11.56854327]
[1740247204981,0.03,173.51,173.49,0.063]
[1740247206181,0.03,173.51,173.49,11.56854327]
[1740247206354,0.03,173.51,173.5,11.50554327]
[1740247206558,0.03,173.51,173.49,0.063]
[1740247208559,0.03,173.51,173.5,11.50554327]
[1740247210365,0.03,173.51,173.5,17.26914327]
[1740247216873,0.03,173.51,173.5,11.50554327]
[1740247217275,0.03,173.51,173.49,0.063]
[1740247218489,0.03,173.51,173.5,11.50554327]
[1740247218691,0.03,173.51,173.5,17.26914327]
[1740247219269,0.03,173.51,173.5,11.50554327]
[1740247220277,0.03,173.51,173.49,0.063]
[1740247221091,0.03,173.51,173.5,11.50554327]
[1740247222894,0.03,173.51,173.5,17.26914327]
[1740247224807,0.03,173.51,173.5,18.26914327]
[1740247225179,0.03,173.51,173.5,64.29131635]
[1740247225480,0.03,173.51,173.5,18.26914327]
[1740247227299,0.03,173.56,173.5,161.60051635]
[1740247227498,0.03,173.56,173.55,11.50554327]
[1740247228677,0.03,173.56,173.55,17.26754327]
[1740247231101,0.03,173.56,173.55,11.50554327]
[1740247231491,0.03,173.56,173.55,17.26754327]
[1740247233997,0.03,173.56,173.55,11.50554327]
[1740247234299,0.03,173.56,173.54,11.50554327]
[1740247234507,0.03,173.56,173.53,11.50554327]
[1740247234885,0.03,173.56,173.54,11.50554327]
[1740247235501,0.03,173.56,173.55,11.50554327]
[1740247237603,0.03,173.56,173.55,17.26754327]
[1740247241810,0.03,173.56,173.55,11.50554327]
[1740247245716,0.03,173.56,173.54,11.50554327]
[1740247245897,0.03,173.56,173.51,11.56854327]
[1740247246412,0.03,173.56,173.53,11.50554327]
[1740247250998,0.03,173.56,173.55,11.50554327]
[1740247252229,0.03,173.56,173.55,17.26754327]
[1740247260761,0.03,173.62,173.55,32.53658023]
[1740247260936,0.03,173.62,173.61,11.50554327]
[1740247263746,0.03,173.62,173.6,11.50554327]
[1740247264143,0.03,173.62,173.59,11.50554327]
[1740247264345,0.03,173.62,173.61,11.50554327]
[1740247266630,0.03,173.62,173.61,17.26554327]
[1740247267232,0.03,173.62,173.59,0.86385517]
[1740247267440,0.03,173.62,173.61,11.50554327]
[1740247269431,0.03,173.62,173.61,64.1515336]
[1740247269656,0.03,173.62,173.61,18.12936052]
[1740247275842,0.03,173.62,173.61,11.50554327]
[1740247277576,0.03,173.62,173.61,17.26554327]
[1740247282182,0.03,173.62,173.61,64.15147166]
[1740247284234,0.063,173.63,173.61,147.05147166]
[1740247284439,0.13722532,173.64,173.63,2.0]
[1740247284641,0.13722532,173.64,173.63,36.64901983]
[1740247285453,0.13722532,173.64,173.63,43.40831983]
[1740247285761,0.13722532,173.64,173.63,42.40831983]
[1740247287274,0.13722532,173.64,173.63,41.54484327]
[1740247287959,0.13722532,173.64,173.63,37.26484327]
[1740247288270,0.13722532,173.64,173.63,11.50554327]
[1740247293965,0.13722532,173.64,173.63,17.26484327]
[1740247294167,0.03,173.64,173.63,17.26484327]
[1740247294346,0.03,173.64,173.63,37.26484327]
[1740247295149,0.03,173.64,173.63,17.26484327]
[1740247295349,0.03,173.64,173.63,37.26484327]
[1740247295562,0.03,173.64,173.63,17.26484327]
[1740247296748,0.03,173.64,173.63,11.50554327]
[1740247299963,0.03,173.64,173.63,17.26484327]
[1740247301470,0.03,173.64,173.63,11.50554327]
[1740247305687,0.03,173.64,173.6,9.48910341]
[1740247305863,0.03,173.64,173.62,11.50554327]
[1740247306064,0.03,173.64,173.63,11.56854327]
[1740247308484,0.03,173.64,173.63,17.32784327]
[1740247310856,0.03,173.64,173.63,18.19144973]
[1740247312991,0.03,173.64,173.63,17.32784327]
[1740247315898,0.03,173.64,173.63,18.19143738]
[1740247319297,0.0001,173.65,173.63,38.84108624]
[1740247319477,0.0001,173.65,173.64,11.50554327]
[1740247319797,0.0001,173.65,173.64,12.50554327]
[1740247320093,0.063,173.67,173.65,20.64964886]
[1740247320280,0.063,173.67,173.66,17.64887632]
[1740247320981,0.063,173.67,173.66,23.40717632]
[1740247325303,0.0001,173.67,173.66,43.05682518]
[1740247325598,0.0001,173.67,173.66,124.95682518]
[1740247325804,0.0001,173.67,173.66,124.09349213]
[1740247326376,0.0001,173.68,173.67,2.0]
[1740247326577,0.0001,173.69,173.68,20.64964886]
[1740247326772,0.0001,173.69,173.68,180.940552]
[1740247326994,3.83e-05,173.7,173.69,2.0]
[1740247327193,3.83e-05,173.7,173.69,141.42771635]
[1740247327703,0.0001,173.74,173.73,1.0]
[1740247327902,0.0001,173.74,173.73,99.54853666]
[1740247328282,0.0001,173.74,173.73,119.19818552]
[1740247328498,0.0001,173.74,173.73,124.09119213]